[Event "Early Titled Tuesday Blitz | February 8 2022"]
[White "Weetik, Vjacheslav"]
[Black "Maksimenko, Viktor"]
[WhiteFideId "4153472"]
[BlackFideId "13710478"]
[WhiteElo "2469"]
[BlackElo "2269"]
[Result "1-0"]
[Round "09"]
[TimeControl "180+1"]
[Date "2022.02.08"]
[WhiteClock "0:00:12"]
[BlackClock "0:00:01"]

1. d4 {[%clk 0:02:57]}  Nf6 {[%clk 0:02:58]} 2. Bf4 {[%clk 0:02:56]}  e6 {[%clk 0:02:56]} 3. e3 {[%clk 0:02:56]}  b6 {[%clk 0:02:53]} 4. Nf3 {[%clk 0:02:56]}  Be7 {[%clk 0:02:54]} 5. h3 {[%clk 0:02:54]}  O-O {[%clk 0:02:51]} 6. Be2 {[%clk 0:02:50]}  c5 {[%clk 0:02:51]} 7. O-O {[%clk 0:02:48]}  Ba6 {[%clk 0:02:47]} 8. c4 {[%clk 0:02:37]}  Nc6 {[%clk 0:02:23]} 9. Nc3 {[%clk 0:02:27]}  cxd4 {[%clk 0:02:11]} 10. Nxd4 {[%clk 0:02:06]}  Nxd4 {[%clk 0:01:56]} 11. Qxd4 {[%clk 0:02:05]}  Rc8 {[%clk 0:01:56]} 12. Rfd1 {[%clk 0:01:40]}  d5 {[%clk 0:01:46]} 13. Nb5 {[%clk 0:01:20]}  Bxb5 {[%clk 0:01:27]} 14. cxb5 {[%clk 0:01:20]}  Bd6 {[%clk 0:01:26]} 15. Rac1 {[%clk 0:00:50]}  Bxf4 {[%clk 0:01:22]} 16. exf4 {[%clk 0:00:46]}  Qd6 {[%clk 0:01:21]} 17. g3 {[%clk 0:00:43]}  h6 {[%clk 0:01:12]} 18. Kg2 {[%clk 0:00:42]}  Nd7 {[%clk 0:01:10]} 19. b4 {[%clk 0:00:40]}  Nf6 {[%clk 0:00:54]} 20. Bd3 {[%clk 0:00:39]}  Rc7 {[%clk 0:00:52]} 21. Qe5 {[%clk 0:00:24]}  Qxe5 {[%clk 0:00:09]} 22. fxe5 {[%clk 0:00:24]}  Rxc1 {[%clk 0:00:10]} 23. Rxc1 {[%clk 0:00:25]}  Nd7 {[%clk 0:00:11]} 24. f4 {[%clk 0:00:25]}  Ra8 {[%clk 0:00:06]} 25. Rc7 {[%clk 0:00:24]}  Nf8 {[%clk 0:00:06]} 26. Kf3 {[%clk 0:00:18]}  g6 {[%clk 0:00:06]} 27. g4 {[%clk 0:00:16]}  g5 {[%clk 0:00:04]} 28. a4 {[%clk 0:00:13]}  Kg7 {[%clk 0:00:03]} 29. f5 {[%clk 0:00:12]}  Nh7 {[%clk 0:00:01]} 1-0


[Site "https://www.chess.com"]

[Event "Early Titled Tuesday Blitz | February 8 2022"]
[White "Weishaeutel, Moritz"]
[Black "Kanyamarala, Trisha"]
[WhiteFideId "12967300"]
[BlackFideId "45004722"]
[WhiteElo "2002"]
[BlackElo "2002"]
[Result "1-0"]
[Round "09"]
[TimeControl "180+1"]
[Date "2022.02.08"]
[WhiteClock "0:00:40"]
[BlackClock "0:00:37"]

1. e4 {[%clk 0:02:26]}  c5 {[%clk 0:02:57]} 2. b4 {[%clk 0:02:25]}  e5 {[%clk 0:02:53]} 3. Nf3 {[%clk 0:02:25]}  cxb4 {[%clk 0:02:50]} 4. a3 {[%clk 0:02:21]}  bxa3 {[%clk 0:02:49]} 5. Nxe5 {[%clk 0:02:09]}  Nc6 {[%clk 0:02:44]} 6. Nf3 {[%clk 0:02:05]}  Nf6 {[%clk 0:02:43]} 7. d3 {[%clk 0:01:50]}  d5 {[%clk 0:02:41]} 8. e5 {[%clk 0:01:44]}  Ng4 {[%clk 0:02:40]} 9. d4 {[%clk 0:01:43]}  h5 {[%clk 0:02:35]} 10. Bxa3 {[%clk 0:01:28]}  Bxa3 {[%clk 0:02:27]} 11. Rxa3 {[%clk 0:01:29]}  Bf5 {[%clk 0:02:21]} 12. Bd3 {[%clk 0:01:24]}  Be4 {[%clk 0:02:13]} 13. c3 {[%clk 0:01:14]}  Qe7 {[%clk 0:02:03]} 14. O-O {[%clk 0:01:13]}  h4 {[%clk 0:01:48]} 15. Bxe4 {[%clk 0:00:56]}  dxe4 {[%clk 0:01:48]} 16. Nfd2 {[%clk 0:00:57]}  Qg5 {[%clk 0:01:16]} 17. h3 {[%clk 0:00:50]}  e3 {[%clk 0:00:51]} 18. Ne4 {[%clk 0:00:40]}  exf2+ {[%clk 0:00:43]} 19. Kh1 {[%clk 0:00:40]}  Qf4 {[%clk 0:00:37]} 20. Qxg4 {[%clk 0:00:40]} 1-0


[Site "https://www.chess.com"]

[Event "Early Titled Tuesday Blitz | February 8 2022"]
[White "Yuan, Qingyu"]
[Black "Kovanova, Baira"]
[WhiteFideId "8609772"]
[BlackFideId "4164083"]
[WhiteElo "2359"]
[BlackElo "2190"]
[Result "1-0"]
[Round "09"]
[TimeControl "180+1"]
[Date "2022.02.08"]
[WhiteClock "0:00:15"]
[BlackClock "0:00:05"]

1. Nf3 {[%clk 0:03:00]}  d5 {[%clk 0:02:58]} 2. g3 {[%clk 0:03:00]}  Nc6 {[%clk 0:02:55]} 3. d4 {[%clk 0:02:59]}  Bf5 {[%clk 0:02:54]} 4. Bg2 {[%clk 0:02:59]}  Nb4 {[%clk 0:02:50]} 5. Na3 {[%clk 0:02:59]}  e6 {[%clk 0:02:48]} 6. c3 {[%clk 0:02:53]}  Nc6 {[%clk 0:02:47]} 7. Nh4 {[%clk 0:02:43]}  Be4 {[%clk 0:02:44]} 8. f3 {[%clk 0:02:26]}  Bg6 {[%clk 0:02:43]} 9. Nc2 {[%clk 0:02:23]}  Nf6 {[%clk 0:02:41]} 10. O-O {[%clk 0:02:22]}  Be7 {[%clk 0:02:35]} 11. Nxg6 {[%clk 0:02:20]}  hxg6 {[%clk 0:02:35]} 12. e4 {[%clk 0:02:21]}  e5 {[%clk 0:01:59]} 13. exd5 {[%clk 0:02:04]}  Qxd5 {[%clk 0:01:26]} 14. f4 {[%clk 0:01:51]}  e4 {[%clk 0:01:22]} 15. Ne3 {[%clk 0:01:51]}  Qd7 {[%clk 0:01:15]} 16. d5 {[%clk 0:01:38]}  Nb8 {[%clk 0:01:09]} 17. Qd4 {[%clk 0:01:37]}  Na6 {[%clk 0:01:07]} 18. b4 {[%clk 0:01:36]}  c5 {[%clk 0:01:04]} 19. Qe5 {[%clk 0:00:58]}  cxb4 {[%clk 0:01:00]} 20. cxb4 {[%clk 0:00:56]}  Nxb4 {[%clk 0:00:56]} 21. d6 {[%clk 0:00:37]}  Qxd6 {[%clk 0:00:56]} 22. Qb5+ {[%clk 0:00:36]}  Qc6 {[%clk 0:00:50]} 23. Qe2 {[%clk 0:00:27]}  O-O {[%clk 0:00:47]} 24. Ba3 {[%clk 0:00:26]}  Bc5 {[%clk 0:00:37]} 25. Kh1 {[%clk 0:00:22]}  a5 {[%clk 0:00:24]} 26. Rac1 {[%clk 0:00:21]}  b6 {[%clk 0:00:24]} 27. Nc4 {[%clk 0:00:21]}  Rfe8 {[%clk 0:00:21]} 28. Ne5 {[%clk 0:00:21]}  Qa4 {[%clk 0:00:21]} 29. Qc4 {[%clk 0:00:16]}  Re7 {[%clk 0:00:18]} 30. Nxg6 {[%clk 0:00:13]}  Rc7 {[%clk 0:00:15]} 31. Bxb4 {[%clk 0:00:08]}  Qxb4 {[%clk 0:00:14]} 32. Ne5 {[%clk 0:00:08]}  Qxc4 {[%clk 0:00:14]} 33. Rxc4 {[%clk 0:00:08]}  Nd5 {[%clk 0:00:12]} 34. Bxe4 {[%clk 0:00:08]}  Rd8 {[%clk 0:00:11]} 35. Rd1 {[%clk 0:00:08]}  f6 {[%clk 0:00:09]} 36. Bxd5+ {[%clk 0:00:07]}  Rxd5 {[%clk 0:00:09]} 37. Rxd5 {[%clk 0:00:08]}  fxe5 {[%clk 0:00:10]} 38. fxe5 {[%clk 0:00:08]}  Rf7 {[%clk 0:00:10]} 39. Rf4 {[%clk 0:00:08]}  Re7 {[%clk 0:00:10]} 40. Kg2 {[%clk 0:00:08]}  Kh7 {[%clk 0:00:10]} 41. Kf3 {[%clk 0:00:08]}  Kg6 {[%clk 0:00:10]} 42. Ke4 {[%clk 0:00:09]}  a4 {[%clk 0:00:10]} 43. h4 {[%clk 0:00:09]}  a3 {[%clk 0:00:10]} 44. Rg4+ {[%clk 0:00:09]}  Kf7 {[%clk 0:00:10]} 45. Rf4+ {[%clk 0:00:09]}  Ke6 {[%clk 0:00:10]} 46. Rg4 {[%clk 0:00:10]}  Kf7 {[%clk 0:00:10]} 47. h5 {[%clk 0:00:10]}  Ra7 {[%clk 0:00:09]} 48. Rf4+ {[%clk 0:00:10]}  Ke6 {[%clk 0:00:09]} 49. Rd3 {[%clk 0:00:09]}  Ra4+ {[%clk 0:00:08]} 50. Kf3 {[%clk 0:00:10]}  Ra7 {[%clk 0:00:08]} 51. Ke4 {[%clk 0:00:10]}  Ra4+ {[%clk 0:00:08]} 52. Kf3 {[%clk 0:00:10]}  Ra7 {[%clk 0:00:08]} 53. Re4 {[%clk 0:00:11]}  Kf5 {[%clk 0:00:07]} 54. g4+ {[%clk 0:00:10]}  Ke6 {[%clk 0:00:07]} 55. Kg3 {[%clk 0:00:08]}  Rf7 {[%clk 0:00:07]} 56. Re2 {[%clk 0:00:08]}  Rf1 {[%clk 0:00:07]} 57. Rf3 {[%clk 0:00:08]}  Rg1+ {[%clk 0:00:06]} 58. Kf4 {[%clk 0:00:08]}  Ra1 {[%clk 0:00:05]} 59. Kg5 {[%clk 0:00:08]}  Rg1 {[%clk 0:00:05]} 60. Rf4 {[%clk 0:00:07]}  Be7+ {[%clk 0:00:04]} 61. Kg6 {[%clk 0:00:07]}  Bc5 {[%clk 0:00:03]} 62. Kxg7 {[%clk 0:00:07]}  Be7 {[%clk 0:00:02]} 63. Rf6+ {[%clk 0:00:07]}  Bxf6+ {[%clk 0:00:01]} 64. exf6+ {[%clk 0:00:08]}  Kd6 {[%clk 0:00:02]} 65. Re4 {[%clk 0:00:08]}  Kd5 {[%clk 0:00:02]} 66. Rf4 {[%clk 0:00:08]}  Ke5 {[%clk 0:00:01]} 67. Rf5+ {[%clk 0:00:09]}  Ke6 {[%clk 0:00:02]} 68. Rf4 {[%clk 0:00:08]}  Ke5 {[%clk 0:00:01]} 69. Rb4 {[%clk 0:00:09]}  Ke6 {[%clk 0:00:01]} 70. f7 {[%clk 0:00:09]}  Rf1 {[%clk 0:00:01]} 71. Rxb6+ {[%clk 0:00:10]}  Ke7 {[%clk 0:00:01]} 72. Rb7+ {[%clk 0:00:10]}  Kd6 {[%clk 0:00:02]} 73. f8=Q+ {[%clk 0:00:10]}  Rxf8 {[%clk 0:00:01]} 74. Kxf8 {[%clk 0:00:11]}  Kc6 {[%clk 0:00:02]} 75. Rb3 {[%clk 0:00:12]}  Kc5 {[%clk 0:00:02]} 76. h6 {[%clk 0:00:13]}  Kc4 {[%clk 0:00:03]} 77. h7 {[%clk 0:00:14]}  Kd4 {[%clk 0:00:03]} 78. h8=Q+ {[%clk 0:00:15]}  Ke4 {[%clk 0:00:04]} 79. Qh7+ {[%clk 0:00:15]}  Kf4 {[%clk 0:00:05]} 80. Qf5# {[%clk 0:00:15]} 1-0


[Site "https://www.chess.com"]

[Event "Early Titled Tuesday Blitz | February 8 2022"]
[White "Yushko, Olga"]
[Black "Xie, Bryan"]
[WhiteFideId "14114500"]
[BlackFideId "30941296"]
[WhiteElo "2028"]
[BlackElo "1899"]
[Result "1-0"]
[Round "09"]
[TimeControl "180+1"]
[Date "2022.02.08"]
[WhiteClock "0:02:08"]
[BlackClock "0:00:04"]

1. d4 {[%clk 0:02:59]}  Nf6 {[%clk 0:00:15]} 2. c4 {[%clk 0:02:58]}  e6 {[%clk 0:00:15]} 3. Nc3 {[%clk 0:02:58]}  Bb4 {[%clk 0:00:15]} 4. Qc2 {[%clk 0:02:57]}  O-O {[%clk 0:00:15]} 5. Nf3 {[%clk 0:02:56]}  c5 {[%clk 0:00:14]} 6. dxc5 {[%clk 0:02:56]}  Bxc5 {[%clk 0:00:14]} 7. g3 {[%clk 0:02:55]}  Nc6 {[%clk 0:00:15]} 8. Bg2 {[%clk 0:02:55]}  Bb4 {[%clk 0:00:15]} 9. O-O {[%clk 0:02:55]}  d5 {[%clk 0:00:15]} 10. cxd5 {[%clk 0:02:54]}  Nxd5 {[%clk 0:00:15]} 11. Nxd5 {[%clk 0:02:53]}  Qxd5 {[%clk 0:00:16]} 12. Ng5 {[%clk 0:02:49]}  Qf5 {[%clk 0:00:14]} 13. Be4 {[%clk 0:02:47]}  Qg4 {[%clk 0:00:13]} 14. Bxh7+ {[%clk 0:02:43]}  Kh8 {[%clk 0:00:13]} 15. Be4 {[%clk 0:02:39]}  Be7 {[%clk 0:00:08]} 16. Bf3 {[%clk 0:02:34]}  Qf5 {[%clk 0:00:08]} 17. Be4 {[%clk 0:02:32]}  Qg4 {[%clk 0:00:08]} 18. Bxc6 {[%clk 0:02:09]}  bxc6 {[%clk 0:00:04]} 19. Qh7# {[%clk 0:02:08]} 1-0


[Site "https://www.chess.com"]

[Event "Early Titled Tuesday Blitz | February 8 2022"]
[White "Zarnicki, Pablo"]
[Black "Vokhidov, Shamsiddin"]
[WhiteFideId "100137"]
[BlackFideId "14204223"]
[WhiteElo "2467"]
[BlackElo "2611"]
[Result "0-1"]
[Round "09"]
[TimeControl "180+1"]
[Date "2022.02.08"]
[WhiteClock "0:00:09"]
[BlackClock "0:00:19"]

1. e4 {[%clk 0:00:16]}  c5 {[%clk 0:02:58]} 2. Nf3 {[%clk 0:00:16]}  e6 {[%clk 0:02:58]} 3. d4 {[%clk 0:00:16]}  cxd4 {[%clk 0:02:59]} 4. Nxd4 {[%clk 0:00:17]}  Nf6 {[%clk 0:02:59]} 5. Nc3 {[%clk 0:00:17]}  Nc6 {[%clk 0:03:00]} 6. Nxc6 {[%clk 0:00:18]}  bxc6 {[%clk 0:03:00]} 7. Bd3 {[%clk 0:00:18]}  d5 {[%clk 0:03:00]} 8. O-O {[%clk 0:00:18]}  Be7 {[%clk 0:03:00]} 9. Qe2 {[%clk 0:00:18]}  O-O {[%clk 0:03:01]} 10. b3 {[%clk 0:00:17]}  Bb7 {[%clk 0:02:50]} 11. Bb2 {[%clk 0:00:18]}  c5 {[%clk 0:02:50]} 12. Rad1 {[%clk 0:00:17]}  Re8 {[%clk 0:02:49]} 13. e5 {[%clk 0:00:14]}  Nd7 {[%clk 0:02:47]} 14. Na4 {[%clk 0:00:15]}  Qc7 {[%clk 0:02:37]} 15. c4 {[%clk 0:00:14]}  Nb6 {[%clk 0:02:36]} 16. Nc3 {[%clk 0:00:13]}  Rad8 {[%clk 0:02:32]} 17. f4 {[%clk 0:00:12]}  a6 {[%clk 0:02:18]} 18. Qh5 {[%clk 0:00:09]}  g6 {[%clk 0:02:17]} 19. Qh6 {[%clk 0:00:10]}  Bf8 {[%clk 0:02:17]} 20. Qh4 {[%clk 0:00:10]}  Rd7 {[%clk 0:02:09]} 21. cxd5 {[%clk 0:00:10]}  exd5 {[%clk 0:02:07]} 22. f5 {[%clk 0:00:10]}  Rxe5 {[%clk 0:01:57]} 23. fxg6 {[%clk 0:00:11]}  hxg6 {[%clk 0:01:47]} 24. Ne2 {[%clk 0:00:11]}  Rh5 {[%clk 0:01:46]} 25. Qg4 {[%clk 0:00:10]}  Qxh2+ {[%clk 0:01:44]} 26. Kf2 {[%clk 0:00:10]}  c4 {[%clk 0:01:26]} 27. bxc4 {[%clk 0:00:10]}  Bc5+ {[%clk 0:01:13]} 28. Bd4 {[%clk 0:00:09]}  Bxd4+ {[%clk 0:01:13]} 29. Nxd4 {[%clk 0:00:09]}  Rh4 {[%clk 0:01:11]} 30. Nf3 {[%clk 0:00:06]}  Rxg4 {[%clk 0:01:08]} 31. Nxh2 {[%clk 0:00:07]}  Rf4+ {[%clk 0:01:09]} 32. Kg3 {[%clk 0:00:07]}  Rxf1 {[%clk 0:01:08]} 33. Bxf1 {[%clk 0:00:08]}  Rc7 {[%clk 0:01:04]} 34. cxd5 {[%clk 0:00:08]}  Bxd5 {[%clk 0:01:05]} 35. Nf3 {[%clk 0:00:08]}  a5 {[%clk 0:01:00]} 36. Rb1 {[%clk 0:00:08]}  Na4 {[%clk 0:00:48]} 37. Rb5 {[%clk 0:00:08]}  Rc5 {[%clk 0:00:48]} 38. Rxc5 {[%clk 0:00:07]}  Nxc5 {[%clk 0:00:49]} 39. a3 {[%clk 0:00:08]}  f6 {[%clk 0:00:46]} 40. Nd2 {[%clk 0:00:08]}  Kf7 {[%clk 0:00:45]} 41. Kf4 {[%clk 0:00:09]}  Ke6 {[%clk 0:00:44]} 42. g3 {[%clk 0:00:09]}  g5+ {[%clk 0:00:44]} 43. Ke3 {[%clk 0:00:09]}  Ke5 {[%clk 0:00:44]} 44. Be2 {[%clk 0:00:10]}  f5 {[%clk 0:00:44]} 45. Nb1 {[%clk 0:00:09]}  f4+ {[%clk 0:00:43]} 46. gxf4+ {[%clk 0:00:10]}  gxf4+ {[%clk 0:00:44]} 47. Kf2 {[%clk 0:00:11]}  Ne4+ {[%clk 0:00:40]} 48. Ke1 {[%clk 0:00:11]}  Ba2 {[%clk 0:00:35]} 49. Nd2 {[%clk 0:00:10]}  Nd6 {[%clk 0:00:30]} 50. Nf3+ {[%clk 0:00:09]}  Kd5 {[%clk 0:00:24]} 51. Kd2 {[%clk 0:00:10]}  Ne4+ {[%clk 0:00:24]} 52. Kc2 {[%clk 0:00:09]}  Kc5 {[%clk 0:00:20]} 53. Kb2 {[%clk 0:00:08]}  Bd5 {[%clk 0:00:20]} 54. Bd3 {[%clk 0:00:09]}  Nf2 {[%clk 0:00:19]} 55. Be2 {[%clk 0:00:08]}  Bxf3 {[%clk 0:00:17]} 56. Bxf3 {[%clk 0:00:09]}  Nd3+ {[%clk 0:00:17]} 57. Kc3 {[%clk 0:00:09]}  Ne5 {[%clk 0:00:18]} 58. Be2 {[%clk 0:00:09]}  Nc6 {[%clk 0:00:17]} 59. Kb3 {[%clk 0:00:08]}  Nd4+ {[%clk 0:00:17]} 60. Ka4 {[%clk 0:00:08]}  Nxe2 {[%clk 0:00:18]} 61. Kxa5 {[%clk 0:00:09]}  f3 {[%clk 0:00:19]} 0-1


[Site "https://www.chess.com"]

[Event "Early Titled Tuesday Blitz | February 8 2022"]
[White "Aggelis, Nikolaos"]
[Black "Thomas, Anysia"]
[WhiteFideId "4213220"]
[BlackFideId "670472"]
[WhiteElo "2154"]
[BlackElo "2002"]
[Result "1/2-1/2"]
[Round "10"]
[TimeControl "180+1"]
[Date "2022.02.08"]
[WhiteClock "0:01:09"]
[BlackClock "0:00:19"]

1. d4 {[%clk 0:03:00]}  Nf6 {[%clk 0:02:53]} 2. g3 {[%clk 0:03:01]}  g6 {[%clk 0:02:48]} 3. Bg2 {[%clk 0:03:00]}  Bg7 {[%clk 0:02:49]} 4. Nf3 {[%clk 0:03:01]}  d5 {[%clk 0:02:48]} 5. O-O {[%clk 0:03:02]}  O-O {[%clk 0:02:47]} 6. c4 {[%clk 0:03:03]}  dxc4 {[%clk 0:02:47]} 7. Na3 {[%clk 0:03:02]}  c5 {[%clk 0:02:47]} 8. Nxc4 {[%clk 0:03:00]}  Nc6 {[%clk 0:02:23]} 9. dxc5 {[%clk 0:02:59]}  Qc7 {[%clk 0:02:23]} 10. Bf4 {[%clk 0:02:58]}  e5 {[%clk 0:02:21]} 11. Nfxe5 {[%clk 0:02:56]}  Nxe5 {[%clk 0:02:18]} 12. Nxe5 {[%clk 0:02:47]}  Qxc5 {[%clk 0:02:17]} 13. Rc1 {[%clk 0:02:44]}  Qa5 {[%clk 0:02:16]} 14. a3 {[%clk 0:02:34]}  Be6 {[%clk 0:02:02]} 15. Nc4 {[%clk 0:02:31]}  Qb5 {[%clk 0:01:52]} 16. Nd6 {[%clk 0:02:20]}  Qxb2 {[%clk 0:01:46]} 17. Nxb7 {[%clk 0:02:20]}  Rac8 {[%clk 0:01:17]} 18. Rb1 {[%clk 0:02:14]}  Qc2 {[%clk 0:01:09]} 19. Bd6 {[%clk 0:02:03]}  Rfe8 {[%clk 0:01:05]} 20. Qxc2 {[%clk 0:01:48]}  Rxc2 {[%clk 0:01:04]} 21. Rfc1 {[%clk 0:01:48]}  Rxe2 {[%clk 0:00:57]} 22. Bf3 {[%clk 0:01:49]}  Rd2 {[%clk 0:00:52]} 23. Bb4 {[%clk 0:01:48]}  Rd3 {[%clk 0:00:50]} 24. Bc6 {[%clk 0:01:44]}  Rc8 {[%clk 0:00:45]} 25. Bb5 {[%clk 0:01:44]}  Rd4 {[%clk 0:00:25]} 26. Rxc8+ {[%clk 0:01:42]}  Bxc8 {[%clk 0:00:25]} 27. Nd6 {[%clk 0:01:42]}  Be6 {[%clk 0:00:22]} 28. Bc5 {[%clk 0:01:24]}  Rd5 {[%clk 0:00:20]} 29. Nb7 {[%clk 0:01:25]}  Ne4 {[%clk 0:00:19]} 30. Rc1 {[%clk 0:01:18]}  Nxc5 {[%clk 0:00:19]} 31. Rxc5 {[%clk 0:01:17]}  Rxc5 {[%clk 0:00:19]} 32. Nxc5 {[%clk 0:01:18]}  Bf8 {[%clk 0:00:20]} 33. Nxe6 {[%clk 0:01:17]}  fxe6 {[%clk 0:00:20]} 34. a4 {[%clk 0:01:14]}  Bc5 {[%clk 0:00:20]} 35. Kg2 {[%clk 0:01:13]}  Kf7 {[%clk 0:00:20]} 36. f4 {[%clk 0:01:14]}  Kf6 {[%clk 0:00:20]} 37. Kf3 {[%clk 0:01:10]}  e5 {[%clk 0:00:21]} 38. Ke4 {[%clk 0:01:07]}  exf4 {[%clk 0:00:21]} 39. gxf4 {[%clk 0:01:08]}  h6 {[%clk 0:00:20]} 40. h3 {[%clk 0:01:08]}  g5 {[%clk 0:00:19]} 41. f5 {[%clk 0:01:09]}  h5 {[%clk 0:00:19]} 42. Be2 {[%clk 0:01:09]}  h4 {[%clk 0:00:18]} 43. Bd3 {[%clk 0:01:09]}  Bb6 {[%clk 0:00:17]} 44. Kd5 {[%clk 0:01:09]}  Bf2 {[%clk 0:00:17]} 45. a5 {[%clk 0:01:06]}  Be1 {[%clk 0:00:16]} 46. a6 {[%clk 0:01:07]}  Bf2 {[%clk 0:00:17]} 47. Kd6 {[%clk 0:01:07]}  Bb6 {[%clk 0:00:17]} 48. Kd7 {[%clk 0:01:07]}  Be3 {[%clk 0:00:17]} 49. Ke8 {[%clk 0:01:07]}  Bb6 {[%clk 0:00:18]} 50. Kf8 {[%clk 0:01:08]}  Be3 {[%clk 0:00:18]} 51. Kg8 {[%clk 0:01:08]}  Bb6 {[%clk 0:00:19]} 52. Kh7 {[%clk 0:01:09]}  Be3 {[%clk 0:00:19]} 53. Bc2 {[%clk 0:01:09]}  Bb6 {[%clk 0:00:19]} 54. Kh6 {[%clk 0:01:09]}  Be3 {[%clk 0:00:19]} 55. Kh5 {[%clk 0:01:09]}  Bb6 {[%clk 0:00:19]} 56. Be4 {[%clk 0:01:09]}  Be3 {[%clk 0:00:19]} 1/2-1/2


[Site "https://www.chess.com"]

[Event "Early Titled Tuesday Blitz | February 8 2022"]
[White "Alinasab, Mobina"]
[Black "Rostovtsev, Dmitry"]
[WhiteFideId "12528897"]
[BlackFideId "34278320"]
[WhiteElo "2061"]
[BlackElo "2218"]
[Result "1/2-1/2"]
[Round "10"]
[TimeControl "180+1"]
[Date "2022.02.08"]
[WhiteClock "0:00:08"]
[BlackClock "0:00:19"]

1. e4 {[%clk 0:03:00]}  g6 {[%clk 0:02:59]} 2. d4 {[%clk 0:03:00]}  Bg7 {[%clk 0:03:00]} 3. Nc3 {[%clk 0:02:59]}  d6 {[%clk 0:03:00]} 4. f4 {[%clk 0:02:59]}  Nf6 {[%clk 0:03:00]} 5. Nf3 {[%clk 0:02:59]}  O-O {[%clk 0:02:58]} 6. e5 {[%clk 0:03:00]}  dxe5 {[%clk 0:02:58]} 7. fxe5 {[%clk 0:03:01]}  Nd5 {[%clk 0:02:58]} 8. Bc4 {[%clk 0:02:59]}  Be6 {[%clk 0:02:58]} 9. Bb3 {[%clk 0:02:53]}  Nc6 {[%clk 0:02:54]} 10. Ng5 {[%clk 0:02:48]}  Nxc3 {[%clk 0:02:54]} 11. bxc3 {[%clk 0:02:46]}  Bxb3 {[%clk 0:02:49]} 12. cxb3 {[%clk 0:02:47]}  f6 {[%clk 0:02:34]} 13. Ne6 {[%clk 0:02:45]}  Qd5 {[%clk 0:02:34]} 14. Nxf8 {[%clk 0:02:43]}  Qxg2 {[%clk 0:02:32]} 15. Rf1 {[%clk 0:02:43]}  Rxf8 {[%clk 0:02:27]} 16. Qe2 {[%clk 0:02:40]}  Qd5 {[%clk 0:02:15]} 17. exf6 {[%clk 0:02:36]}  exf6 {[%clk 0:02:11]} 18. Ba3 {[%clk 0:02:34]}  Rd8 {[%clk 0:02:08]} 19. O-O-O {[%clk 0:02:33]}  Kf7 {[%clk 0:02:06]} 20. Rfe1 {[%clk 0:02:30]}  a5 {[%clk 0:01:57]} 21. Bb2 {[%clk 0:01:42]}  Qf5 {[%clk 0:01:55]} 22. Qc4+ {[%clk 0:01:36]}  Qd5 {[%clk 0:01:50]} 23. Qxd5+ {[%clk 0:01:33]}  Rxd5 {[%clk 0:01:51]} 24. c4 {[%clk 0:01:34]}  Rh5 {[%clk 0:01:51]} 25. d5 {[%clk 0:01:34]}  Ne5 {[%clk 0:01:42]} 26. Bxe5 {[%clk 0:01:32]}  fxe5 {[%clk 0:01:43]} 27. d6 {[%clk 0:01:31]}  cxd6 {[%clk 0:01:40]} 28. Rxd6 {[%clk 0:01:32]}  Bh6+ {[%clk 0:01:34]} 29. Kb1 {[%clk 0:01:31]}  Rxh2 {[%clk 0:01:35]} 30. Rd7+ {[%clk 0:01:29]}  Kf6 {[%clk 0:01:34]} 31. Rxh7 {[%clk 0:01:24]}  b6 {[%clk 0:01:34]} 32. a3 {[%clk 0:01:10]}  Kf5 {[%clk 0:01:29]} 33. b4 {[%clk 0:01:06]}  axb4 {[%clk 0:01:30]} 34. axb4 {[%clk 0:01:07]}  Rh4 {[%clk 0:01:26]} 35. Ka2 {[%clk 0:01:02]}  Rxc4 {[%clk 0:01:12]} 36. Rxh6 {[%clk 0:01:00]}  Rxb4 {[%clk 0:01:12]} 37. Rh8 {[%clk 0:00:54]}  e4 {[%clk 0:00:59]} 38. Rf8+ {[%clk 0:00:51]}  Ke5 {[%clk 0:00:59]} 39. Re8+ {[%clk 0:00:48]}  Kf4 {[%clk 0:00:49]} 40. Ka3 {[%clk 0:00:34]}  Rd4 {[%clk 0:00:49]} 41. Kb3 {[%clk 0:00:35]}  g5 {[%clk 0:00:43]} 42. Kc3 {[%clk 0:00:35]}  Rd3+ {[%clk 0:00:43]} 43. Kc4 {[%clk 0:00:31]}  b5+ {[%clk 0:00:42]} 44. Kxb5 {[%clk 0:00:26]}  e3 {[%clk 0:00:43]} 45. Kc4 {[%clk 0:00:22]}  Ra3 {[%clk 0:00:43]} 46. Rf1+ {[%clk 0:00:21]}  Kg3 {[%clk 0:00:38]} 47. Kd4 {[%clk 0:00:21]}  Kg2 {[%clk 0:00:30]} 48. Rf5 {[%clk 0:00:21]}  g4 {[%clk 0:00:27]} 49. Rxe3 {[%clk 0:00:21]}  Ra4+ {[%clk 0:00:27]} 50. Kd3 {[%clk 0:00:21]}  g3 {[%clk 0:00:27]} 51. Rg5 {[%clk 0:00:19]}  Ra3+ {[%clk 0:00:21]} 52. Ke4 {[%clk 0:00:18]}  Ra4+ {[%clk 0:00:19]} 53. Kf5 {[%clk 0:00:18]}  Ra5+ {[%clk 0:00:19]} 54. Kg6 {[%clk 0:00:14]}  Rxg5+ {[%clk 0:00:18]} 55. Kxg5 {[%clk 0:00:15]}  Kf2 {[%clk 0:00:19]} 56. Ra3 {[%clk 0:00:15]}  g2 {[%clk 0:00:19]} 57. Ra2+ {[%clk 0:00:15]}  Kf1 {[%clk 0:00:20]} 58. Ra1+ {[%clk 0:00:15]}  Kf2 {[%clk 0:00:20]} 59. Kf4 {[%clk 0:00:09]}  g1=Q {[%clk 0:00:19]} 60. Rxg1 {[%clk 0:00:08]} 1/2-1/2


[Site "https://www.chess.com"]

[Event "Early Titled Tuesday Blitz | February 8 2022"]
[White "Aloma Vidal, Robert"]
[Black "Lucas, Arthur"]
[WhiteFideId "2260409"]
[BlackFideId "26093073"]
[WhiteElo "2435"]
[BlackElo "2129"]
[Result "1-0"]
[Round "10"]
[TimeControl "180+1"]
[Date "2022.02.08"]
[WhiteClock "0:00:43"]
[BlackClock "0:00:01"]

1. e4 {[%clk 0:02:57]}  c6 {[%clk 0:02:55]} 2. d4 {[%clk 0:02:57]}  d5 {[%clk 0:02:56]} 3. e5 {[%clk 0:02:55]}  Bf5 {[%clk 0:02:56]} 4. Nf3 {[%clk 0:02:54]}  e6 {[%clk 0:02:56]} 5. Be2 {[%clk 0:02:55]}  c5 {[%clk 0:02:56]} 6. Be3 {[%clk 0:02:53]}  Qb6 {[%clk 0:02:55]} 7. c4 {[%clk 0:02:54]}  Qxb2 {[%clk 0:02:49]} 8. O-O {[%clk 0:02:54]}  Qxa1 {[%clk 0:02:45]} 9. Qb3 {[%clk 0:02:54]}  Nd7 {[%clk 0:02:24]} 10. Nc3 {[%clk 0:02:45]}  Qxf1+ {[%clk 0:02:18]} 11. Bxf1 {[%clk 0:02:46]}  dxc4 {[%clk 0:02:16]} 12. Qxb7 {[%clk 0:02:40]}  Rb8 {[%clk 0:02:15]} 13. Qxa7 {[%clk 0:02:40]}  Ne7 {[%clk 0:02:11]} 14. Bxc4 {[%clk 0:02:20]}  Nc6 {[%clk 0:02:09]} 15. Qc7 {[%clk 0:02:20]}  Nxd4 {[%clk 0:01:55]} 16. Nxd4 {[%clk 0:02:13]}  cxd4 {[%clk 0:01:56]} 17. Bxd4 {[%clk 0:02:00]}  Bb4 {[%clk 0:01:50]} 18. g4 {[%clk 0:01:53]}  Bxc3 {[%clk 0:01:33]} 19. Bxc3 {[%clk 0:01:47]}  Be4 {[%clk 0:01:32]} 20. f3 {[%clk 0:01:42]}  Bxf3 {[%clk 0:01:29]} 21. h3 {[%clk 0:01:35]}  O-O {[%clk 0:00:52]} 22. Qxd7 {[%clk 0:01:34]}  Rfc8 {[%clk 0:00:41]} 23. Qd4 {[%clk 0:01:19]}  Rd8 {[%clk 0:00:32]} 24. Qf4 {[%clk 0:01:12]}  Bc6 {[%clk 0:00:25]} 25. Bb3 {[%clk 0:01:07]}  Rd3 {[%clk 0:00:24]} 26. Bb4 {[%clk 0:00:53]}  Rf3 {[%clk 0:00:14]} 27. Qc4 {[%clk 0:00:51]}  Bd5 {[%clk 0:00:11]} 28. Qc7 {[%clk 0:00:51]}  Rg3+ {[%clk 0:00:10]} 29. Kf2 {[%clk 0:00:48]}  Rg2+ {[%clk 0:00:07]} 30. Kf1 {[%clk 0:00:48]}  Re8 {[%clk 0:00:02]} 31. Bxd5 {[%clk 0:00:47]}  Rb2 {[%clk 0:00:01]} 32. Bc6 {[%clk 0:00:43]} 1-0


[Site "https://www.chess.com"]